fUSD/lending_fUSD_20250103
["ID","MTS","AMOUNT","RATE_DAILY","PERIOD"]
[347539750,1735908659088,-1443.04,9.53e-05,2]
[347539751,1735908659102,-500.0,9.53e-05,2]
[347539752,1735908659114,-500.0,9.53e-05,2]
[347539753,1735908659127,-515.65,9.53e-05,2]
[347539754,1735908659139,-1875.25,9.53e-05,2]
[347539755,1735908659152,-500.0,9.53e-05,2]
[347539756,1735908659162,-941.07,9.53e-05,2]
[347539757,1735908659175,-2886.5,9.53e-05,2]
[347539758,1735908659188,-500.0,9.53e-05,2]
[347539759,1735908659199,-1122.14,9.53e-05,2]
[347539760,1735908659211,-500.0,9.53e-05,2]
[347539761,1735908659223,-500.0,9.53e-05,2]
[347539762,1735908659235,-6449.48,9.53e-05,2]
[347539763,1735908659248,-500.0,9.53e-05,2]
[347539764,1735908659260,-629.06,9.53e-05,2]
[347539765,1735908659272,-1882.07,9.53e-05,2]
[347539766,1735908659285,-892.15,9.53e-05,2]
[347539767,1735908659298,-1183.28,9.53e-05,2]
[347539768,1735908659311,-500.0,9.53e-05,2]
[347539769,1735908659322,-1232.1,9.53e-05,2]
[347539770,1735908659335,-949.14,9.53e-05,2]
[347539771,1735908659346,-628.4,9.53e-05,2]
[347539772,1735908659359,-1092.35,9.53e-05,2]
[347539773,1735908659371,-500.0,9.53e-05,2]
[347539774,1735908659383,-500.0,9.53e-05,2]
[347539775,1735908659395,-500.0,9.53e-05,2]
[347539776,1735908659407,-598.71,9.53e-05,2]
[347539777,1735908659419,-979.91,9.53e-05,2]
[347539778,1735908659435,-1120.49,9.53e-05,2]
[347539779,1735908659447,-500.0,9.53e-05,2]
[347539780,1735908659457,-3976.89,9.53e-05,2]
[347539781,1735908659468,-837.61,9.53e-05,2]
[347539782,1735908659478,-616.8,9.53e-05,2]
[347539783,1735908659490,-500.0,9.53e-05,2]
[347539784,1735908659503,-613.45,9.53e-05,2]
[347539785,1735908659515,-632.54,9.53e-05,2]
[347539786,1735908659527,-1528.66,9.53e-05,2]
[347539787,1735908659538,-2334.41,9.53e-05,2]
[347539788,1735908659549,-5655.33,9.53e-05,2]
[347539789,1735908659559,-1252.71,9.53e-05,2]
[347539790,1735908659571,-500.0,9.53e-05,2]
[347539791,1735908659582,-2412.89,9.53e-05,2]
[347539792,1735908659599,-3779.49,9.53e-05,2]
[347539793,1735908659610,-500.0,9.53e-05,2]
[347539794,1735908659621,-500.0,9.53e-05,2]
[347539795,1735908659632,-500.0,9.53e-05,2]
[347539796,1735908659645,-500.0,9.53e-05,2]
[347539797,1735908659656,-500.0,9.53e-05,2]
[347539798,1735908659668,-4303.96,9.53e-05,2]
[347539799,1735908659680,-500.0,9.53e-05,2]
[347539800,1735908659691,-500.0,9.53e-05,2]
[347539801,1735908659702,-500.0,9.53e-05,2]
[347539802,1735908659713,-1586.02,9.53e-05,2]
[347539803,1735908659725,-723.51,9.53e-05,2]
[347539804,1735908659737,-1400.58,9.53e-05,2]
[347539805,1735908659747,-925.4,9.53e-05,2]
[347539806,1735908659758,-1669.32,9.53e-05,2]
[347539807,1735908659769,-2148.94,9.53e-05,2]
[347539808,1735908659780,-500.0,9.53e-05,2]
[347539809,1735908659791,-1935.364896,9.53e-05,2]
[347539810,1735908659802,-500.0,9.53e-05,2]
[347539811,1735908659813,-6473.46239759,9.53e-05,2]
[347539812,1735908659827,-488.21760241,9.53e-05,2]
[347539813,1735908659838,-500.0,9.53e-05,2]
[347539814,1735908659849,-500.0,9.53e-05,2]
[347539815,1735908659860,-817.82,9.53e-05,2]
[347539816,1735908659871,-816.65,9.53e-05,2]
[347539817,1735908659882,-500.0,9.53e-05,2]
[347539818,1735908659894,-500.0,9.53e-05,2]
[347539819,1735908659906,-2338.77,9.53e-05,2]
[347539820,1735908659917,-500.0,9.53e-05,2]
[347539821,1735908659928,-500.0,9.53e-05,2]
[347539822,1735908659939,-1906.268819,9.53e-05,2]
[347539823,1735908659950,-5005.04,9.53e-05,2]
[347539824,1735908659961,-500.0,9.53e-05,2]
[347539825,1735908659972,-2621.66,9.53e-05,2]
[347539826,1735908659982,-992.84,9.53e-05,2]
[347539827,1735908659993,-523.18,9.53e-05,2]
[347539828,1735908660004,-500.0,9.53e-05,2]
[347539829,1735908660015,-2273.17,9.53e-05,2]
[347539830,1735908660027,-6468.52,9.53e-05,2]
[347539831,1735908660038,-787.89,9.53e-05,2]
[347539832,1735908660050,-500.0,9.53e-05,2]
[347539833,1735908660061,-825.14,9.53e-05,2]
[347539834,1735908660073,-500.0,9.53e-05,2]
[347539835,1735908660084,-1709.84,9.53e-05,2]
[347539836,1735908660096,-500.0,9.53e-05,2]
[347539837,1735908660107,-500.0,9.53e-05,2]
[347539838,1735908660118,-2183.54,9.53e-05,2]
[347539839,1735908660129,-500.0,9.53e-05,2]
[347539840,1735908660139,-500.0,9.53e-05,2]
[347539841,1735908660151,-1181.85,9.53e-05,2]
[347539842,1735908660162,-4067.92,9.53e-05,2]
[347539843,1735908660173,-2683.03,9.531e-05,2]
[347539844,1735908660185,-7277.24,9.531e-05,2]
[347539845,1735908660196,-7008.87,9.531e-05,2]
[347539846,1735908660207,-689.8,9.531e-05,2]
[347539847,1735908660219,-500.0,9.531e-05,2]
[347539848,1735908660231,-500.0,9.531e-05,2]
[347539849,1735908660242,-3582.71,9.531e-05,2]
[347539850,1735908660253,-500.0,9.531e-05,2]
[347539851,1735908660264,-626.19,9.531e-05,2]
[347539852,1735908660275,-500.0,9.531e-05,2]
[347539853,1735908660286,-500.0,9.531e-05,2]
[347539854,1735908660298,-500.0,9.531e-05,2]
[347539855,1735908660309,-829.82,9.531e-05,2]
[347539856,1735908660320,-7421.33,9.531e-05,2]
[347539857,1735908660332,-500.0,9.531e-05,2]
[347539858,1735908660342,-823.09,9.531e-05,2]
[347539859,1735908660354,-500.0,9.531e-05,2]
[347539860,1735908660364,-500.0,9.531e-05,2]
[347539861,1735908660376,-500.0,9.531e-05,2]
[347539862,1735908660387,-500.0,9.531e-05,2]
[347539863,1735908660399,-500.0,9.531e-05,2]
[347539864,1735908660410,-500.0,9.531e-05,2]
[347539865,1735908660422,-500.0,9.531e-05,2]
[347539866,1735908660434,-702.96,9.531e-05,2]
[347539867,1735908660445,-500.0,9.531e-05,2]
[347539868,1735908660455,-500.0,9.531e-05,2]
[347539869,1735908660467,-500.0,9.531e-05,2]
[347539870,1735908660478,-151.34,9.531e-05,2]
[347539871,1735908660489,-512.93,9.531e-05,2]
[347539872,1735908660501,-500.0,9.531e-05,2]
[347539873,1735908660512,-500.0,9.531e-05,2]
[347539874,1735908660523,-500.0,9.531e-05,2]
[347539875,1735908660534,-500.0,9.531e-05,2]
[347539876,1735908660545,-500.0,9.531e-05,2]
[347539877,1735908660556,-500.0,9.531e-05,2]
[347539878,1735908660567,-363.50191818,9.531e-05,2]
[347539879,1735908660578,-500.0,9.531e-05,2]
[347539880,1735908660590,-816.92,9.531e-05,2]
[347539881,1735908660601,-819.86,9.531e-05,2]
[347539882,1735908660612,-500.0,9.531e-05,2]
[347539883,1735908660622,-500.0,9.531e-05,2]
[347539884,1735908660633,-500.0,9.531e-05,2]
[347539885,1735908660644,-280.2955661,9.531e-05,2]
[347539886,1735908660655,-565.17929399,9.531e-05,2]
[347539887,1735908660667,-618.48,9.531e-05,2]
[347539888,1735908660679,-500.0,9.531e-05,2]
[347539889,1735908660691,-500.0,9.531e-05,2]
[347539890,1735908660702,-500.0,9.531e-05,2]
[347539891,1735908660713,-500.0,9.531e-05,2]
[347539892,1735908660723,-500.0,9.531e-05,2]
[347539893,1735908660734,-701.32,9.531e-05,2]
[347539894,1735908660746,-500.0,9.531e-05,2]
[347539895,1735908660757,-609.84,9.531e-05,2]
[347539896,1735908660768,-500.0,9.531e-05,2]
[347539897,1735908660779,-500.0,9.531e-05,2]
[347539898,1735908660790,-500.0,9.531e-05,2]
[347539899,1735908660802,-500.0,9.531e-05,2]
[347539900,1735908660813,-634.04,9.531e-05,2]
[347539901,1735908660824,-998.85,9.531e-05,2]
[347539902,1735908660835,-536.57,9.531e-05,2]
[347539903,1735908660846,-500.0,9.531e-05,2]
[347539904,1735908660857,-825.74,9.531e-05,2]
[347539905,1735908660868,-1433.21,9.531e-05,2]
[347539906,1735908660879,-500.0,9.531e-05,2]
[347539907,1735908660890,-500.0,9.531e-05,2]
[347539908,1735908660901,-916.13,9.531e-05,2]
[347539909,1735908660912,-582.04,9.531e-05,2]
[347539910,1735908660923,-1473.35,9.531e-05,2]
[347539911,1735908660934,-500.0,9.531e-05,2]
[347539912,1735908660945,-874.57,9.531e-05,2]
[347539913,1735908660955,-625.87,9.531e-05,2]
[347539914,1735908660967,-615.29,9.531e-05,2]
[347539915,1735908660978,-909.27,9.531e-05,2]
[347539916,1735908660989,-508.12,9.531e-05,2]
[347539917,1735908661000,-500.0,9.531e-05,2]
[347539918,1735908661010,-964.76,9.531e-05,2]
[347539919,1735908661022,-500.0,9.531e-05,2]
[347539920,1735908661033,-1223.13,9.531e-05,2]
[347539921,1735908661044,-500.0,9.531e-05,2]
[347539922,1735908661055,-500.0,9.531e-05,2]
[347539923,1735908661066,-616.58,9.531e-05,2]
[347539924,1735908661076,-2371.66,9.531e-05,2]
[347539925,1735908661087,-581.23,9.531e-05,2]
[347539926,1735908661098,-885.4,9.531e-05,2]
[347539927,1735908661108,-500.0,9.531e-05,2]
[347539928,1735908661119,-2310.21,9.531e-05,2]
[347539929,1735908661130,-500.0,9.531e-05,2]
[347539930,1735908661141,-500.0,9.531e-05,2]
[347539931,1735908661162,-770.51,9.531e-05,2]
[347539932,1735908661173,-1220.39,9.531e-05,2]
[347539933,1735908661185,-876.94,9.531e-05,2]
[347539934,1735908661196,-500.0,9.531e-05,2]
[347539935,1735908661206,-846.93,9.531e-05,2]
[347539936,1735908661217,-500.0,9.531e-05,2]
[347539937,1735908661227,-1090.1,9.531e-05,2]
[347539938,1735908661238,-1636.32,9.531e-05,2]
[347539939,1735908661249,-500.0,9.531e-05,2]
[347539940,1735908661259,-500.0,9.531e-05,2]
[347539941,1735908661270,-617.89,9.531e-05,2]
[347539942,1735908661280,-649.81,9.531e-05,2]
[347539943,1735908661291,-500.0,9.531e-05,2]
[347539944,1735908661301,-500.0,9.531e-05,2]
[347539945,1735908661312,-2480.64,9.531e-05,2]
[347539946,1735908661322,-542.64,9.531e-05,2]
[347539947,1735908661332,-614.63,9.531e-05,2]
[347539948,1735908661343,-709.86,9.531e-05,2]
[347539949,1735908661354,-500.0,9.531e-05,2]
[347539950,1735908661364,-500.0,9.531e-05,2]
[347539951,1735908661375,-750.34,9.531e-05,2]
[347539952,1735908661386,-1131.76,9.531e-05,2]
[347539953,1735908661398,-500.0,9.531e-05,2]
[347539954,1735908661410,-565.8,9.531e-05,2]
[347539955,1735908661423,-885.72,9.531e-05,2]
[347539956,1735908661434,-783.54,9.531e-05,2]
[347539957,1735908661444,-500.0,9.531e-05,2]
[347539958,1735908661455,-500.0,9.531e-05,2]
[347539959,1735908661465,-500.0,9.531e-05,2]
[347539960,1735908661475,-720.81,9.531e-05,2]
[347539961,1735908661486,-500.0,9.531e-05,2]
[347539962,1735908661497,-500.0,9.531e-05,2]
[347539963,1735908661509,-570.72,9.531e-05,2]
[347539964,1735908661519,-500.0,9.531e-05,2]
[347539965,1735908661530,-500.0,9.531e-05,2]
[347539966,1735908661541,-500.0,9.531e-05,2]
[347539967,1735908661552,-500.0,9.531e-05,2]
[347539968,1735908661563,-789.24,9.531e-05,2]
[347539969,1735908661574,-544.6921036,9.531e-05,2]
[347539970,1735908661584,-821.49,9.531e-05,2]
[347539971,1735908661595,-500.0,9.531e-05,2]
[347539972,1735908661606,-500.0,9.531e-05,2]
[347539973,1735908661617,-859.89,9.531e-05,2]
[347539974,1735908661629,-2690.85,9.531e-05,2]
[347539975,1735908661640,-594.49,9.531e-05,2]
[347539976,1735908661651,-500.0,9.531e-05,2]
[347539977,1735908661662,-1762.38,9.531e-05,2]
[347539978,1735908661672,-500.0,9.531e-05,2]
[347539979,1735908661683,-500.0,9.531e-05,2]
[347539980,1735908661693,-500.0,9.531e-05,2]
[347539981,1735908661703,-532.46,9.531e-05,2]
[347539982,1735908661715,-1744.37,9.531e-05,2]
[347539983,1735908661725,-500.0,9.531e-05,2]
[347539984,1735908661735,-692.61,9.531e-05,2]
[347539985,1735908661745,-500.0,9.531e-05,2]
[347539986,1735908661756,-174.9998509,9.531e-05,2]
[347539987,1735908661767,-500.0,9.531e-05,2]
[347539988,1735908661778,-1290.16,9.531e-05,2]
[347539989,1735908661789,-632.24071372,9.531e-05,2]
[347539990,1735908661800,-500.0,9.531e-05,2]
[347539991,1735908661811,-660.26,9.531e-05,2]
[347539992,1735908661822,-753.48,9.531e-05,2]
[347539993,1735908661832,-500.0,9.531e-05,2]
[347539994,1735908661843,-571.3,9.531e-05,2]
[347539995,1735908661854,-8227.65,9.531e-05,2]
[347539996,1735908661865,-1601.95,9.531e-05,2]
[347539997,1735908661876,-905.32,9.531e-05,2]
[347539998,1735908661886,-500.0,9.531e-05,2]
[347539999,1735908661898,-500.0,9.531e-05,2]
[347540000,1735908661908,-1087.32,9.531e-05,2]
[347540001,1735908661919,-1649.62,9.531e-05,2]
[347540002,1735908661930,-795.79,9.531e-05,2]
[347540003,1735908661940,-500.0,9.531e-05,2]
[347540004,1735908661949,-966.6,9.531e-05,2]
[347540005,1735908661958,-850.2,9.531e-05,2]
[347540006,1735908661967,-500.0,9.531e-05,2]
[347540007,1735908661976,-797.68,9.531e-05,2]
[347540008,1735908661985,-500.0,9.531e-05,2]
[347540009,1735908661995,-500.0,9.531e-05,2]
[347540010,1735908662004,-500.0,9.531e-05,2]
[347540011,1735908662014,-3498.13,9.531e-05,2]
[347540012,1735908662024,-762.79,9.531e-05,2]
[347540013,1735908662033,-391.85933523,9.531e-05,2]
[347540014,1735908662043,-500.0,9.531e-05,2]
[347540015,1735908662053,-812.42,9.531e-05,2]
[347540016,1735908662062,-784.5,9.531e-05,2]
[347540017,1735908662072,-500.0,9.531e-05,2]
[347540018,1735908662081,-500.0,9.531e-05,2]
[347540019,1735908662091,-861.86,9.531e-05,2]
[347540020,1735908662101,-500.0,9.531e-05,2]
[347540021,1735908662111,-751.91,9.531e-05,2]
[347540022,1735908662121,-578.96,9.531e-05,2]
[347540023,1735908662131,-5015.22,9.531e-05,2]
[347540024,1735908662141,-500.0,9.531e-05,2]
[347540025,1735908662155,-837.23,9.531e-05,2]
[347540026,1735908662165,-554.69,9.531e-05,2]
[347540027,1735908662175,-2435.1,9.531e-05,2]
[347540028,1735908662184,-1120.89,9.531e-05,2]
[347540029,1735908662195,-728.67,9.531e-05,2]
[347540030,1735908662205,-500.0,9.531e-05,2]
[347540031,1735908662215,-500.0,9.531e-05,2]
[347540032,1735908662224,-1777.7,9.531e-05,2]
[347540033,1735908662233,-500.0,9.531e-05,7]
[347540034,1735908662243,-1181.12,9.531e-05,2]
[347540035,1735908662784,-823.16,9.531e-05,2]
[347540036,1735908662824,-568.34,9.531e-05,2]
[347540037,1735908662845,-644.67,9.531e-05,2]
[347540038,1735908662861,-128.23892634,9.531e-05,2]
[347540039,1735908662884,-421.46000002,9.531e-05,2]
[347540040,1735908662897,-1062.5683572,9.531e-05,2]
[347540041,1735908662909,-1339.71271644,9.531e-05,2]
[347540042,1735908662919,-534.07,9.531e-05,2]
[347540043,1735908662930,-578.28,9.531e-05,2]
[347540044,1735908662939,-606.49,9.531e-05,2]
[347540045,1735908662950,-194.65260736,9.531e-05,2]
[347540046,1735908702174,190074.91426,8.801e-05,7]
[347540047,1735908702693,6425.0857398,8.801e-05,7]
[347540048,1735908763927,2070.82924676,8.801e-05,7]
[347540049,1735908764228,94151.9428998,8.801e-05,7]
[347540050,1735908894297,500.0,0.0002,120]
[347540051,1735908904326,173.0,8.801e-05,30]
[347540052,1735908904677,173.0,9.496e-05,30]
[347540053,1735908905033,173.0,0.0001019,30]
[347540054,1735908905339,173.0,0.00010885,30]
[347540055,1735908905676,173.0,0.0001158,30]
[347540056,1735908905999,173.0,0.00012274,30]
[347540057,1735908906853,173.0,0.00012969,30]
[347540059,1735909203395,150.0,8.801e-05,30]
[347540060,1735909203762,150.0,9.744e-05,30]
[347540061,1735909204375,150.0,0.00010687,30]
[347540062,1735909204484,150.0,0.00011629,30]
[347540063,1735909204920,150.0,0.00012572,30]
[347540065,1735909503582,151.0,8.801e-05,30]
[347540066,1735909503903,151.0,0.00010268,30]
[347540067,1735909504226,151.0,0.00011734,30]
[347540068,1735909504573,151.0,0.00013201,30]
[347540069,1735909722546,400.60818631,0.0002,120]
[347540073,1735909804117,151.0,8.801e-05,30]
[347540074,1735909804445,151.0,0.00011441,30]
[347540083,1735909832435,-163.82,7.754e-05,2]
[347540084,1735909832447,-201.09,7.86e-05,2]
[347540085,1735909832456,-461.93,7.865e-05,2]
[347540086,1735909832465,-250.0,7.907e-05,2]
[347540087,1735909832475,-500.0,7.969e-05,2]
[347540088,1735909832484,-500.0,7.969e-05,2]
[347540089,1735909832496,-500.0,7.969e-05,2]
[347540090,1735909832504,-200.0,8.048e-05,2]
[347540091,1735909832514,-57.8750972,8.076e-05,2]
[347540092,1735909832527,-242.1249028,8.076e-05,2]
[347540093,1735909832536,-3246.6920823,8.077e-05,2]
[347540094,1735909835054,-3368.91933,8.077e-05,2]
[347540095,1735909835171,-387.02289021,8.077e-05,2]
[347540096,1735909835183,-2537.55774827,8.077e-05,2]
[347540097,1735909835195,-4284.86589823,8.077e-05,2]
[347540141,1735909838210,-969.9861,8.077e-05,2]
[347540142,1735909838267,-9104.95595099,8.077e-05,2]
[347540143,1735909838276,-1828.23529615,8.102e-05,2]
[347540144,1735909838288,-3869.71470385,8.102e-05,2]
[347540145,1735909838297,-1874.52,8.219e-05,2]
[347540146,1735909838306,-1000.0,8.219e-05,2]
[347540147,1735909838315,-838.92,8.219e-05,2]
[347540148,1735909838324,-250.0,8.223e-05,2]
[347540149,1735909838334,-756.25,8.259e-05,2]
[347540150,1735909838343,-250.0,8.264e-05,2]
[347540151,1735909838353,-167.56,8.294e-05,2]
[347540152,1735909838362,-150.0,8.605e-05,2]
[347540153,1735909838372,-150.0,8.605e-05,2]
[347540154,1735909838380,-150.0,8.605e-05,2]
[347540155,1735909838390,-150.0,8.605e-05,2]
[347540156,1735909838399,-771.32,8.63e-05,2]
[347540157,1735909838408,-150.0,8.742e-05,2]
[347540158,1735909838418,-2451.81,8.767e-05,2]
[347540159,1735909838426,-7573.7499,8.782e-05,2]
[347540160,1735909838435,-3486.79953786,8.782e-05,2]
[347540161,1735909838447,-7688.82006214,8.782e-05,2]
[347540162,1735909838457,-150.0,8.879e-05,2]
[347540163,1735909838466,-795.61,8.881e-05,2]
[347540164,1735909838475,-1910.0627374,8.881e-05,2]
[347540165,1735909838488,-165.1372626,8.881e-05,2]
[347540166,1735909838498,-767.32,8.881e-05,2]
[347540167,1735909838507,-1431.78,8.881e-05,2]
[347540168,1735909838516,-990.29,8.881e-05,2]
[347540169,1735909838525,-500.0,8.881e-05,2]
[347540170,1735909838534,-500.0,8.881e-05,2]
[347540171,1735909838544,-951.4,8.881e-05,2]
[347540172,1735909838553,-500.0,8.881e-05,2]
[347540173,1735909838562,-710.86,8.881e-05,2]
[347540174,1735909838571,-754.12,8.881e-05,2]
[347540175,1735909838580,-500.0,8.881e-05,2]
[347540176,1735909838589,-1034.14,8.881e-05,2]
[347540177,1735909838598,-596.0,8.881e-05,2]
[347540178,1735909838608,-994.53,8.881e-05,2]
[347540180,1735909838617,-500.0,8.881e-05,2]
[347540182,1735909838627,-6483.1026,8.881e-05,2]
[347540183,1735909838636,-500.0,8.882e-05,2]
[347540184,1735909838645,-500.0,8.882e-05,2]
[347540185,1735909838655,-500.0,8.882e-05,2]
[347540186,1735909838664,-500.0,8.882e-05,2]
[347540187,1735909838674,-500.0,8.882e-05,2]
[347540188,1735909838683,-368.4030658,8.882e-05,2]
[347540189,1735909838692,-500.0,8.882e-05,2]
[347540191,1735909838703,-500.0,8.882e-05,2]
[347540192,1735909838713,-500.0,8.882e-05,2]
[347540193,1735909838723,-500.0,8.882e-05,2]
[347540194,1735909838732,-500.0,8.882e-05,2]
[347540195,1735909838741,-500.0,8.882e-05,2]
[347540196,1735909838750,-500.0,8.882e-05,2]
[347540197,1735909838759,-500.0,8.882e-05,2]
[347540198,1735909838768,-500.0,8.882e-05,2]
[347540199,1735909838778,-500.0,8.882e-05,2]
[347540200,1735909838787,-500.0,8.882e-05,2]
[347540201,1735909838796,-500.0,8.882e-05,2]
[347540202,1735909838806,-500.0,8.882e-05,2]
[347540203,1735909838815,-826.73316205,8.882e-05,2]
[347540204,1735909838867,-805.02974527,8.882e-05,2]
[347540205,1735909838878,-2756.55709268,8.882e-05,2]
[347540206,1735909838887,-196.43190732,8.882e-05,2]
[347540207,1735909838963,-2386.54809268,8.882e-05,2]
[347540208,1735909838973,-3418.14,8.882e-05,2]
[347540209,1735909838984,-432.97095746,8.882e-05,2]
[347540210,1735909838997,-267.72294304,8.882e-05,2]
[347540211,1735909839019,-51.4260995,8.882e-05,2]
[347540212,1735909839030,-847.59,8.882e-05,2]
[347540213,1735909839039,-1908.60330122,8.882e-05,2]
[347540214,1735909839066,-3441.35669878,8.882e-05,2]
[347540216,1735909839076,-465.11822179,8.882e-05,2]
[347540218,1735909839087,-446.79742223,8.882e-05,2]
[347540237,1735909840754,-571.4487318,8.882e-05,2]
[347540238,1735909840765,-58.24562418,8.882e-05,2]
[347540239,1735909840775,-420.0,8.883e-05,2]
[347540240,1735909840784,-500.0,8.9e-05,3]
[347540241,1735909840793,-150.0,8.924e-05,2]
[347540242,1735909840803,-1067.71,8.98e-05,2]
[347540243,1735909840812,-757.42,8.98e-05,2]
[347540244,1735909840821,-3899.97,8.98e-05,2]
[347540245,1735909840831,-734.13,8.98e-05,2]
[347540246,1735909840840,-725.6,8.98e-05,2]
[347540247,1735909840849,-2799.05,8.98e-05,2]
[347540248,1735909840859,-1711.6,8.98e-05,2]
[347540249,1735909840868,-1640.84,8.98e-05,2]
[347540250,1735909840877,-2525.69,8.98e-05,2]
[347540251,1735909840886,-634.97,8.98e-05,2]
[347540252,1735909840896,-5643.3,8.98e-05,2]
[347540253,1735909840905,-1262.66,8.98e-05,2]
[347540254,1735909840916,-1078.09,8.98e-05,2]
[347540255,1735909840925,-520.88,8.98e-05,2]
[347540256,1735909840935,-2129.92,8.98e-05,2]
[347540257,1735909840944,-939.56,8.98e-05,2]
[347540258,1735909840958,-823.44,8.98e-05,2]
[347540259,1735909840967,-3885.6,8.98e-05,2]
[347540260,1735909840977,-536.77,8.98e-05,2]
[347540261,1735909840987,-1675.92,8.98e-05,2]
[347540262,1735909840997,-2042.61,8.98e-05,2]
[347540263,1735909841007,-1646.82,8.98e-05,2]
[347540264,1735909841016,-2909.68,8.98e-05,2]
[347540265,1735909841026,-630.23,8.98e-05,2]
[347540266,1735909841037,-3765.96,8.98e-05,2]
[347540267,1735909841046,-4712.67,8.98e-05,2]
[347540268,1735909841057,-3479.77,8.98e-05,2]
[347540269,1735909841066,-1460.65,8.98e-05,2]
[347540270,1735909841077,-500.0,8.98e-05,2]
[347540271,1735909841087,-2111.27,8.98e-05,2]
[347540272,1735909841097,-715.59,8.98e-05,2]
[347540273,1735909841106,-500.0,8.98e-05,2]
[347540274,1735909841115,-962.28,8.98e-05,2]
[347540275,1735909841125,-2293.95,8.98e-05,2]
[347540276,1735909841134,-1387.77,8.98e-05,2]
[347540277,1735909841143,-500.0,8.98e-05,2]
[347540278,1735909841153,-651.29,8.98e-05,2]
[347540279,1735909841163,-500.0,8.981e-05,2]
[347540280,1735909841172,-984.23,8.981e-05,2]
[347540281,1735909841181,-500.0,8.981e-05,2]
[347540282,1735909841191,-813.6,8.981e-05,2]
[347540283,1735909841203,-544.83943513,8.981e-05,2]
[347540284,1735909841212,-500.0,8.981e-05,2]
[347540285,1735909841222,-500.0,8.981e-05,2]
[347540286,1735909841231,-500.0,8.981e-05,2]
[347540287,1735909841241,-500.0,8.981e-05,2]
[347540288,1735909841250,-500.0,8.981e-05,2]
[347540289,1735909841260,-682.62,8.981e-05,2]
[347540290,1735909841269,-500.0,8.981e-05,2]
[347540291,1735909841279,-500.0,8.981e-05,2]
[347540292,1735909841288,-500.0,8.981e-05,2]
[347540293,1735909841298,-500.0,8.981e-05,2]
[347540294,1735909841307,-500.0,8.981e-05,2]
[347540295,1735909841316,-903.29,8.981e-05,2]
[347540296,1735909841326,-500.0,8.981e-05,2]
[347540297,1735909841335,-500.0,8.981e-05,2]
[347540298,1735909841344,-500.0,8.981e-05,2]
[347540299,1735909841353,-680.47,8.981e-05,2]
[347540300,1735909841363,-500.0,8.981e-05,2]
[347540301,1735909841372,-500.0,8.981e-05,2]
[347540302,1735909841381,-671.49,8.981e-05,2]
[347540303,1735909841390,-500.0,8.981e-05,2]
[347540304,1735909841400,-500.0,8.981e-05,2]
[347540305,1735909841409,-539.31,8.981e-05,2]
[347540306,1735909841418,-1070.24,8.981e-05,2]
[347540307,1735909841428,-621.1,8.981e-05,2]
[347540308,1735909841437,-500.0,8.981e-05,2]
[347540309,1735909841446,-500.0,8.981e-05,2]
[347540310,1735909841456,-508.58,8.981e-05,2]
[347540311,1735909841465,-500.0,8.981e-05,2]
[347540312,1735909841475,-180.23385516,8.981e-05,2]
[347540313,1735909841491,-319.76614484,8.981e-05,2]
[347540314,1735909841500,-500.0,8.981e-05,2]
[347540315,1735909841510,-500.0,8.981e-05,2]
[347540316,1735909841519,-500.0,8.981e-05,2]
[347540317,1735909841529,-500.0,8.981e-05,2]
[347540318,1735909841538,-1050.54,8.981e-05,2]
[347540319,1735909841548,-500.0,8.981e-05,2]
[347540320,1735909841557,-500.0,8.981e-05,2]
[347540321,1735909841566,-500.0,8.981e-05,2]
[347540322,1735909841575,-156.67840505,8.981e-05,2]
[347540323,1735909841585,-674.19,8.981e-05,2]
[347540324,1735909841594,-627.91,8.981e-05,2]
[347540325,1735909841603,-248.6166885,8.981e-05,2]
[347540326,1735909841612,-500.0,8.981e-05,2]
[347540327,1735909841622,-500.0,8.981e-05,2]
[347540328,1735909841631,-500.0,8.981e-05,2]